Cogmind - Beta 14 @@@ ROGUE MODE // 2025.03.15 @ 23:34:30 Player: Tibo Result: Destroyed by S-10 Pest with Light Assault Rifle Performance ------------- Evolutions (1) 500 Regions Visited (3) 600 Robots Destroyed (12) 60 Value Destroyed (198) 198 Prototype IDs (2) 40 Alien Tech Used (0) 0 Bonus (67) 67 TOTAL SCORE: 1465 Bonus ------- Follower Combat Kills 99 Friendly Fire -32 Cogmind --------- Core Integrity 0/400 Matter 62/300 Energy 100/100 System Corruption 0% Temperature Cool (0) Movement Core (50) Location -9/Materials Parts ------- > --- POWER (1) -------- (None) > --- PROPULSION (3) --- (None) > --- UTILITY (3) ------ (None) > --- WEAPON (2) ------- (None) > --- INVENTORY (5) ---- Improved Ion Engine Aluminum Leg Shield Generator Mini Grenade Launcher Mini Grenade Launcher Peak State ------------ > --- POWER ------------ Improved Ion Engine > --- PROPULSION ------- Light Treads Aluminum Leg Aluminum Leg > --- UTILITY ---------- Small Storage Unit Weight Redist. System Seismic Detector > --- WEAPON ----------- Improved EM Shotgun Improved Assault Rifle > --- INVENTORY -------- Ion Engine Light Nuclear Core Flight Unit Flight Unit Shield Generator Mini Grenade Launcher Mini Grenade Launcher Welding Torch [Rating: 16] Favorites ----------- Power Ion Engine Engine Ion Engine Power Core Light Nuclear Core Propulsion Aluminum Leg Treads Light Treads Leg Aluminum Leg Flight Unit Flight Unit Utility Small Storage Unit Device Seismic Detector Storage Small Storage Unit Weapon Assault Rifle Energy Gun EM Pulse Gun Ballistic Gun Assault Rifle Launcher Mini Grenade Launcher Special Weapon Mining Laser Build | -11 -10 -10 -9 ------- Run | Yrd Mat Min Mat Slots Evolved 2 | . . . 2 Power . | . . . . Propulsion 1 | . . . 1 Utility 1 | . . . 1 Weapon . | . . . . Parts Attached 36 | 7 4 1 24 Power 7 | 1 1 . 5 Engine 6 | 1 1 . 4 Core 1 | . . . 1 Reactor . | . . . . Propulsion 13 | 2 . . 11 Treads 1 | . . . 1 Leg 6 | 2 . . 4 Wheel . | . . . . Hover . | . . . . Flight 6 | . . . 6 Utility 6 | 2 2 . 2 Device 3 | 1 . . 2 Storage 3 | 1 2 . . Processor . | . . . . Hackware . | . . . . Protection . | . . . . Artifact . | . . . . Weapon 10 | 2 1 1 6 Energy Gun 4 | 1 . 1 2 Energy Cannon . | . . . . Ballistic Gun 2 | 1 . . 1 Ballistic Cannon . | . . . . Launcher 2 | . . . 2 Special Weapon 2 | . 1 . 1 Impact Weapon . | . . . . Slashing Weapon . | . . . . Piercing Weapon . | . . . . Special Melee Weapon . | . . . . Unidentified Prototypes 2 | . . . 2 Parts Lost 1 | . . . 1 Power . | . . . . Propulsion 1 | . . . 1 Utility . | . . . . Weapon . | . . . . Highest Loss Streak 1 | . . . 1 To Critical Strikes . | . . . . Average Slot Usage (%) 94 | . 88 100 88 Engine 11 | . 6 14 8 Treads 2 | . . . 9 Leg 22 | . 28 28 9 Flight 2 | . . . 9 Device 15 | . 14 14 18 Storage 12 | . 14 14 9 Energy Gun 6 | . . 9 4 Ballistic Gun 12 | . 14 14 9 Launcher 1 | . . . 4 Special Weapon 4 | . 10 4 . Peak Build Rating 16 | 6 7 8 16 Average Rating 7 | 4 6 7 12 On Entrance 5 | . 6 7 8 Naked Turns 32 | . . . 32 Heaviest Build 19 | 9 14 15 19 Greatest Support 26 | 20 20 20 26 Greatest Overweight (x) 1 | . . . 1 Average Overweight (x) . | . . . . Largest Inventory Capacity 15 | 8 15 8 8 Average Capacity 7 | 7 8 8 7 Most Carried 8 | 8 8 8 8 Average Carried 7 | 5 7 7 7 Final Capacity 8 | 8 8 8 5 Final Carried 8 | 8 7 8 5 Class Distribution -------------------- 100% | Mutant Dominant Class ---------------- Mutant | -10/Materials Mutant | -10/Mines Mutant | -9/Materials Resources | -11 -10 -10 -9 ----------- Run | Yrd Mat Min Mat Matter Collected 483 | 315 . 101 67 Remotely . | . . . . Salvage Created 370 | 238 . 63 69 Parts 28 | 19 . 3 6 Haulers Intercepted . | . . . . Recyclers Shooed . | . . . . Parts Field Recycled . | . . . . Retrieved Matter . | . . . . Parts Self-Destructed . | . . . . Prevented . | . . . . Kills | -11 -10 -10 -9 ------- Run | Yrd Mat Min Mat Combat Hostiles Destroyed 3 | . . 1 2 Guns 1 | . . 1 . AOE 2 | . . . 2 Classes Destroyed 6 | 3 . 1 2 Worker 3 | 2 . 1 . Builder 1 | . . . 1 Tunneler 4 | 4 . . . Recycler 1 | 1 . . . Grunt 2 | . . 1 1 Sentry 1 | . . . 1 Best Kill Streak 3 | 3 . 1 2 Combat Bots Only 1 | . . 1 1 Max Kills in Single Turn 2 | 1 . 1 2 Gunslinging . | . . . . Exploded 1 | . . . 1 Melee . | . . . . Uniques/NPCs Destroyed . | . . . . Combat | -11 -10 -10 -9 -------- Run | Yrd Mat Min Mat Hostile Shots Fired 131 | . . 18 113 Missed 34 | . . 8 26 Damage Taken 892 | . . 117 775 Core 421 | . . 18 403 Absorbed by Shields . | . . . . Core Remaining (%) 96 | 100 . 92 . Volleys Fired 43 | 15 2 16 10 Largest 2 | 2 2 2 2 Hottest 120 | 60 120 120 68 Shots Fired 69 | 22 4 26 17 Gun 60 | 22 2 25 11 Cannon . | . . . . Launcher 4 | . . . 4 Special 5 | . 2 1 2 Kinetic 43 | 15 2 16 10 Thermal 5 | . 2 1 2 Explosive 4 | . . . 4 Electromagnetic 17 | 7 . 9 1 Robot Hit Streak 10 | 10 . 4 2 Robot Miss Streak 3 | 1 . 3 3 Penetration Max . | . . . . Secondary Targets . | . . . . Shots Hit Robots 32 | 17 . 13 2 Core Hits 19 | 7 . 6 6 Critical Kills . | . . . . Critical Parts Destroyed 1 | . . 1 . Critical Strikes 2 | . . 2 . Destroy 1 | . . 1 . Corrupt 1 | . . 1 . Melee Attacks . | . . . . Impact . | . . . . Slashing . | . . . . Piercing . | . . . . Sneak Attacks . | . . . . Combat Hostiles . | . . . . Follow-up Attacks . | . . . . Damage Inflicted 572 | 228 . 221 123 Guns 448 | 228 . 197 23 Cannons . | . . . . Explosions 100 | . . . 100 Melee . | . . . . Ramming . | . . . . Kinetic 278 | 135 . 131 12 Thermal 24 | . . 24 . Explosive 100 | . . . 100 Electromagnetic 170 | 93 . 66 11 Impact . | . . . . Slashing . | . . . . Piercing . | . . . . Highest Corruption . | . . . . Average Corruption . | . . . . Corruption Purged . | . . . . Corruption Blocked . | . . . . Overload Shots . | . . . . Overflow Damage . | . . . . Projectiles . | . . . . Explosions . | . . . . Melee . | . . . . Knockbacks . | . . . . Impact . | . . . . Kinetic . | . . . . Secondary . | . . . . Self-Inflicted Damage 61 | . . . 61 Shots 2 | . . . 2 Rammed . | . . . . Targets Rammed 1 | . . 1 . Kicked 1 | . . 1 . Crushed . | . . . . Highest Temperature 20 | . . 20 3 Average Temperature 10 | . . 11 3 Received Heat Transfer 57 | . . 42 15 Siege Activations . | . . . . Robots Corrupted . | . . . . Combat Hostiles . | . . . . Parts Fried . | . . . . Impact Corruptions . | . . . . Robots Melted . | . . . . Combat Hostiles . | . . . . Parts Melted 1 | . . 1 . Heat Transferred 50 | . . 50 . Parts Sabotaged . | . . . . Parts Stolen . | . . . . Parts Stripped . | . . . . Power Chain Reactions . | . . . . Alert | -11 -10 -10 -9 ------- Run | Yrd Mat Min Mat Peak Influence 190 | 35 24 118 190 Initial 24 | . 22 9 24 Average 55 | 15 23 59 88 Maximum Alert Level . | . . . . Low Security (%) 100 | 100 100 100 100 Level 1 . | . . . . Level 2 . | . . . . Level 3 . | . . . . Level 4 . | . . . . Level 5 . | . . . . High Security . | . . . . Max Security . | . . . . Squads Dispatched 1 | . . 1 . Investigation . | . . . . Extermination . | . . . . Reinforcement . | . . . . Assault 1 | . . 1 . Garrison . | . . . . Intercept . | . . . . Searches Triggered . | . . . . Construction Impeded . | . . . . Haulers Reinforced . | . . . . Active Scanning Responses . | . . . . Cargo Convoy Interrupts . | . . . . Stealth | -11 -10 -10 -9 --------- Run | Yrd Mat Min Mat Distress Signals 1 | . . . 1 Communications Jammed . | . . . . Distress Signals . | . . . . Times Spotted 19 | . 2 8 9 Peak Tracking Total 5 | . 2 3 5 Tactical Retreats 2 | . . 1 1 Traps | -11 -10 -10 -9 ------- Run | Yrd Mat Min Mat Traps Triggered . | . . . . Indirectly . | . . . . Trap Hack Attempts . | . . . . Triggered . | . . . . Disarmed . | . . . . Reprogrammed . | . . . . Reused . | . . . . Traps Extracted . | . . . . Installed . | . . . . Triggered . | . . . . Machines | -11 -10 -10 -9 ---------- Run | Yrd Mat Min Mat Machines Disabled 3 | . . 1 2 Max in Single Turn 2 | . . . 2 Machines Repaired . | . . . . Machines Dismantled . | . . . . Machines Sabotaged . | . . . . Overloaded Fab Kills . | . . . . Hacking | -11 -10 -10 -9 --------- Run | Yrd Mat Min Mat Machines Accessed 2 | . . . 2 Terminals 1 | . . . 1 Fabricators . | . . . . Repair Stations . | . . . . Recycling Units 1 | . . . 1 Scanalyzers . | . . . . Garrison Access . | . . . . Total Hacks 3 | . . . 3 Successful . | . . . . Failed 3 | . . . 3 Catastrophic . | . . . . Database Lockouts . | . . . . Manual . | . . . . Terminals 1 | . . . 1 Fabricators . | . . . . Repair Stations . | . . . . Recycling Units 2 | . . . 2 Scanalyzers . | . . . . Garrison Access . | . . . . Terminal Hacks . | . . . . Fabricator Hacks . | . . . . Repair Station Hacks . | . . . . Recycling Unit Hacks . | . . . . Scanalyzer . | . . . . Garrison Access Hacks . | . . . . Unauthorized Hacks . | . . . . Terminals . | . . . . Fabricators . | . . . . Repair Stations . | . . . . Recycling Units . | . . . . Scanalyzers . | . . . . Garrison Access . | . . . . Data Cores Recovered . | . . . . Used . | . . . . Hacking Detections 2 | . . . 2 Full Trace Events . | . . . . Feedback Events . | . . . . Feedback Blocked . | . . . . Robot Schematics Acquired . | . . . . Robots Built . | . . . . Authchips . | . . . . Time . | . . . . Total Robot Build Rating . | . . . . Part Schematics Acquired . | . . . . Parts Built . | . . . . Authchips . | . . . . Time . | . . . . Total Part Build Rating . | . . . . Parts Repaired . | . . . . Time . | . . . . Parts Recycled . | . . . . Recycled Matter . | . . . . Retrieved Matter . | . . . . Retrieved Components . | . . . . Parts Scanalyzed . | . . . . Part Schematics Acquired . | . . . . Parts Damaged . | . . . . Bothacking | -11 -10 -10 -9 ------------ Run | Yrd Mat Min Mat Used RIF Installer . | . . . . Robots Hacked . | . . . . Non-combat . | . . . . Combat . | . . . . Robot Hacks Applied . | . . . . Relay Couplers Released . | . . . . Fabnet Peak Effective % . | . . . . Robots Rewired . | . . . . Allies Hacked . | . . . . Hacks Repelled . | . . . . Allies | -11 -10 -10 -9 -------- Run | Yrd Mat Min Mat Total Allies 4 | . . 4 . Largest Group 3 | . . 3 . Highest-Rated Group 63 | . . 63 . Highest-Rated Ally 31 | . . 31 . Total Orders . | . . . . Ally Attacks 28 | . . 28 . Total Damage 271 | . . 271 . Kills 6 | . . 6 . Allies Corrupted . | . . . . Allies Melted . | . . . . Intel | -11 -10 -10 -9 ------- Run | Yrd Mat Min Mat Robot Analysis Total . | . . . . Derelict Logs Recovered 1 | . . 1 . Drone Launches . | . . . . Drone Recoveries . | . . . . Exploration | -11 -10 -10 -9 ------------- Run | Yrd Mat Min Mat Turns Passed 1297 | 190 160 631 316 Spaces Moved 943 | 116 116 460 251 Core 17 | 9 . . 8 Treads . | . . . . Legs 749 | 107 116 460 66 Wheels . | . . . . Hover . | . . . . Flight 177 | . . . 177 Fastest Speed 50 | 50 120 120 50 Average Speed 108 | 114 120 120 77 Slowest Speed 140 | 120 120 120 140 Overloaded Moves . | . . . . Propulsion Burnouts . | . . . . Robots Hopped . | . . . . Cave-ins Triggered . | . . . . Exploration Rate (%) 29 | 7 17 82 13 Regions Visited 3 Branch Regions 1 Pre-discovered Areas 1 | . . 1 . Known Exits Taken . | . . . . Unknown Exits Taken 3 | 1 1 1 . Scrap Searched 2 | . . 2 . Spaces Dug 5 | . 2 . 3 Terrain Destroyed 16 | . 2 . 14 Melee . | . . . . Projectile 2 | . 2 . . AOE 14 | . . . 14 Terrain Rammed . | . . . . Walls Destroyed . | . . . . Machines Disabled . | . . . . Actions | -11 -10 -10 -9 --------- Run | Yrd Mat Min Mat Total 1140 | 149 129 513 349 Wait 78 | . 2 23 53 Move 940 | 115 115 459 251 Hop . | . . . . Pick Up 22 | 8 4 7 3 Fast Attach 12 | 7 1 . 4 Attach 3 | . 2 . 1 Detach 3 | 2 . . 1 Swap 21 | . 1 1 19 Drop 17 | 2 2 6 7 Fire 43 | 15 2 16 10 Melee . | . . . . Ram . | . . . . Kick 1 | . . 1 . Crush . | . . . . Escape Stasis . | . . . . Rewire . | . . . . Trap . | . . . . Miscellaneous . | . . . . Route ------- -11/Scrapyard -10/Materials -10/Mines (discovered 3 exits: *Mat x2 / [*Exi]) -9/Materials History --------- Turn | Location | Event 2 | -11/Scrapyard | Met Revision 17 20 | -11/Scrapyard | Discovered new exit (range 16) 191 | -11/Scrapyard | Entered Materials 251 | -10/Materials | Discovered new exit (range 6) 302 | -10/Materials | Build established: Mutant 351 | -10/Materials | Entered Mines 357 | -10/Mines | Discovered new exit (range 11) 374 | -10/Mines | Assisted by bots powering up and referring to "LRC-V3" 447 | -10/Mines | Deemed a non-threat by the Exiles lab entrance 447 | -10/Mines | Discovered new exit (range 5) 589 | -10/Mines | Learned location of Storage (-8) 649 | -10/Mines | Discovered new exit (range 10) 821 | -10/Mines | Met a Derelict testing a Signal Generator 982 | -10/Mines | Entered Materials 982 | -9/Materials | Evolved 2 slots: Propulsion x1, Utility x1 989 | -9/Materials | Lost 3 allies 1266 | -9/Materials | Released all parts (8) 1281 | -9/Materials | Core integrity fell below 50% 1292 | -9/Materials | Core integrity fell below 20% 1298 | -9/Materials | Destroyed by S-10 Pest with Light Assault Rifle Last Messages --------------- 01205_ U-05 Engineer lays Concrete. 01207_ R-06 Scavenger collects Terrain Scan Processor. 01208_ U-05 Engineer lays Concrete. 01213_ Acquired 15 matter. 01225_ U-05 Engineer lays Concrete. 01247_ U-05 Engineer builds a Wall. 01249_ Flight Unit destroyed. 01253_ U-05 Engineer builds a Wall. 01257_ U-05 Engineer lays Concrete. 01266_ Released Ion Engine. 01266_ Released Flight Unit. 01266_ Released Imp. Assault Rifle. 01266_ Released Seismic Detector. 01266_ Released Sml. Storage Unit. 01266_ Released Lgt. Treads. 01266_ Released Weight Redist. System. 01266_ Released Imp. EM Shotgun. 01277_ K-01 Serf collects debris. 01286_ S-10 Pest destroyed. 01292_ K-01 Serf collects debris. Map ----- +----------------------------------------------------+ | ???????????????????????? ???????????????????? | | ???????????????????????? ???????????????????? | | ???????????????????????? ???????????????????? | | ???????????????????????? ???????????????????? | | ???????????????????????? ???????????????????? | | ???????????????????????? ???????????????????? | | ????????????????????????# #???????????????????? | | ????????????????????????# #???????????????????? | | ????????????????????????# #???????????????????? | | ????????????????????????# #???????????????????? | | ????????????????????????# #???????????????????? | | ????????????????????????# #???????????????????? | | ????????????????????????# #???????????????????? | | ????????????????????????# #???????????????????? | | ????????????????????????# #???????????????????? | | ????????????????????????# #???????????????????? | | ???????????????########## #???????????????????? | | ???????????????# # #???????????????????? | | ???????????????# "" # ######??????????????? | | ???????????????# " #u### !##?????????????? | | ???????????????# [ " #= !#?????????????? | | ???????????????# [ !+* !#?????????????? | | ???????????????# # s !#?????????????? | | ???????????????# =# !#?????????????? | | ???????????????# #s !##?????????????? | | ???????????????#! #@*u####??????????????? | | ???????????????##########=us##????????????????? | | ????????????????????????# u #?????????????????? | | ????????????????????????# k#?????????????????? | | ????????????????????????# #?????????????????? | | ?????????????#######????# #?????????????????? | | ?????????????# #????#= #?????????????????? | | ?????????????# #????#=| #?????????????????? | | ?????????????# #????#*!!#?????????????????? | | ?????????????# ######[! ###########???????? | | ?????????????# # [=* #???????? | | ?????????????# + ########? | | ?????????????# # # ] ! #? | | ?????????????# # ######+####### # #? | | ?????????????# # ## #?# # """#? | | ?????????????# # ## *** #?# # """#? | | ?????????????# # ## *** #?# #[ """#? | | ?????????????# # ## *** #?# + #? | | ?????????????####### ######## ##### ########? | | ???????????????????# #???# # # #? | | ???????????????????# #???# # # #? | | ???????????????????# #???# + # [ #? | | ???????????????????# #???# # + !]] #? | | ????????????????#### #???# # # ! #? | | ????????????????# #???# = # # ] #? | +----------------------------------------------------+ Best States ------------- Heat Dissipation 28 Energy Generation 14 Energy Capacity 265 Matter Stores 300 Matter Capacity 300 Sight Range 16 Terrain Scan Density 10 Additional Mass Support 6 Evasion (%) 58 Item Schematics ----------------- None Robot Schematics ------------------ None Fabricated ------------ Nothing Alien Tech Used ----------------- None Achievements -------------- None Challenges ------------ None Game ------ Seed BurstBehemothWeb Manual? 0 Play Time 00:20:58 Cumulative 4.7 hours Start 2025.03.15 @ 23:05:06 End 2025.03.15 @ 23:34:30 Sessions 1 Manual Loads 0 Difficulty Rogue Special Mode None Game No. 9 Rogue 9 Adventurer 0 Explorer 0 Win Type - Total 0 Types 0/0/0/0/0/0/0/0/0 Lore% 1 Gallery% 8 Achievement% 6 Wizard Run 0 Options --------- Layout 2 ASCII 0 Keyboard 1 Movement Numpad Keybinds 0 Fullscreen 2 Font 32/Tamsyn Map View 90x49 Zoom Use 0% Tactical HUD 1 Map Filters NONE Filters NONE Steam 1 RUN: 5c2d12e0-4bc9-466f-9117-09c5d1a19adc